bitfinex-derivatives/quotes_BNBF0:USTF0_20251002
["timestamp","ask_amount","ask_price","bid_price","bid_amount"]
[1759378575897,0.16822443,1034.8,1033.4,0.65129027]
[1759378576402,0.16822443,1034.8,1033.3,0.65129027]
[1759378578100,0.16822443,1034.8,1033.4,0.65129027]
[1759378578295,0.16822443,1034.8,1033.1,0.86869737]
[1759378578296,0.16822443,1034.8,1033.3,0.65129027]
[1759378598313,0.16822443,1034.8,1033.4,3.77109709]
[1759378603218,0.16822443,1034.8,1033.5,0.65129027]
[1759378606125,0.16822443,1034.8,1033.4,3.77109709]
[1759378606424,0.16822443,1034.8,1033.5,0.65129027]
[1759378612228,0.16822443,1034.8,1033.6,0.65129027]
[1759378615927,0.16822443,1034.8,1033.7,0.65129027]
[1759378618230,0.16822443,1034.8,1033.8,0.65129027]
[1759378618728,0.16822443,1034.8,1033.7,0.65129027]
[1759378621133,0.16822443,1034.8,1033.5,0.65129027]
[1759378621334,1.03410645,1034.8,1033.5,0.65129027]
[1759378622144,0.86588202,1034.7,1033.5,0.65129027]
[1759378623038,1.03410645,1034.8,1033.6,0.65129027]
[1759378623234,0.16822443,1034.8,1033.6,0.65129027]
[1759378624036,1.03410645,1034.8,1033.8,0.65129027]
[1759378624937,0.16822443,1034.8,1033.9,0.65129027]
[1759378631647,0.16822443,1034.8,1033.8,0.65129027]
[1759378632049,1.03410645,1034.8,1033.8,0.65129027]
[1759378632253,0.86588202,1034.6,1033.6,0.65129027]
[1759378632749,0.86588202,1034.7,1033.6,0.65129027]
[1759378634249,0.86588202,1034.7,1033.5,0.65129027]
[1759378634850,0.16822443,1034.8,1033.5,0.65129027]
[1759378634851,0.86588202,1034.6,1033.5,0.65129027]
[1759378635061,0.86588202,1034.5,1033.4,3.77109709]
[1759378635351,0.86588202,1034.6,1033.4,3.11980682]
[1759378639258,0.86588202,1034.5,1033.4,3.11980682]
[1759378639455,0.86588202,1034.6,1033.4,3.11980682]
[1759378639655,0.86588202,1034.3,1033.4,3.11980682]
[1759378640464,0.86588202,1034.4,1033.4,3.11980682]
[1759378641664,0.86588202,1034.5,1033.4,3.11980682]
[1759378644360,0.86588202,1034.6,1033.4,3.11980682]
[1759378648262,0.86588202,1034.7,1033.4,3.11980682]
[1759378649168,0.86588202,1034.6,1033.4,3.11980682]
[1759378649362,0.86588202,1034.7,1033.4,3.11980682]
[1759378650365,0.86588202,1034.8,1033.4,3.11980682]
[1759378653771,0.1682765,1034.5,1033.4,3.11980682]
[1759378656869,1.03415852,1034.5,1033.4,3.11980682]
[1759378661073,0.1682765,1034.5,1033.4,3.11980682]
[1759378665074,1.03415852,1034.5,1033.4,3.11980682]
[1759378666574,1.03415852,1034.5,1033.0,0.65129027]
[1759378669873,1.03415852,1034.5,1032.9,0.65129027]
[1759378673478,0.1682765,1034.5,1032.9,0.65129027]
[1759378674076,1.03415852,1034.5,1032.9,0.65129027]
[1759378676585,0.1682765,1034.5,1032.9,0.65129027]
[1759378676881,0.1682765,1034.5,1033.0,3.74427802]
[1759378677981,0.1682765,1034.5,1033.0,3.09298775]
[1759378679085,1.03415852,1034.5,1033.0,3.74427802]
[1759378681389,0.1682765,1034.5,1033.0,3.74427802]
[1759378681685,1.03415852,1034.5,1033.0,3.09298775]
[1759378683585,0.86588202,1034.4,1033.0,3.74427802]
[1759378684585,1.03415852,1034.5,1033.0,3.74427802]
[1759378686491,1.03415852,1034.5,1033.1,0.65129027]
[1759378689393,0.86588202,1034.4,1033.1,0.65129027]
[1759378692388,0.86588202,1034.3,1033.1,0.65129027]
[1759378693187,0.86588202,1034.4,1033.2,0.65129027]
[1759378693388,0.86588202,1034.3,1033.2,0.65129027]
[1759378693592,0.86588202,1034.4,1033.2,0.65129027]
[1759378694393,0.1682765,1034.5,1033.2,0.65129027]
[1759378696897,1.03415852,1034.5,1033.3,0.65129027]
[1759378697194,1.03415852,1034.5,1033.2,0.65129027]
[1759378697495,0.1682765,1034.5,1033.2,0.65129027]
[1759378699397,1.03415852,1034.5,1033.2,0.65129027]
[1759378699898,0.1682765,1034.5,1033.2,0.65129027]
[1759378700798,1.03415852,1034.5,1033.2,0.65129027]
[1759378703102,0.86588202,1034.4,1033.2,0.65129027]
[1759378705600,0.86588202,1034.3,1033.3,0.65129027]
[1759378713110,0.86588202,1034.4,1033.3,0.65129027]
[1759378713812,0.86588202,1034.4,1033.4,0.65129027]
[1759378714212,1.03415852,1034.5,1033.4,0.65129027]
[1759378714508,1.03415852,1034.5,1033.5,0.65129027]
[1759378715305,0.1682765,1034.5,1033.5,0.65129027]
[1759378716312,0.1682765,1034.5,1033.4,0.65129027]
[1759378716608,0.1682765,1034.5,1033.5,0.65129027]
[1759378717412,0.1682765,1034.5,1033.4,0.65129027]
[1759378725117,0.1682765,1034.5,1033.3,0.65129027]
[1759378729423,0.1682765,1034.5,1033.2,0.65129027]
[1759378731322,0.1682765,1034.5,1033.3,0.65129027]
[1759378734425,1.03415852,1034.5,1033.3,0.65129027]
[1759378735522,0.1682765,1034.5,1033.3,0.65129027]
[1759378735726,1.03415852,1034.5,1033.4,0.65129027]
[1759378742332,0.1682765,1034.5,1033.4,0.65129027]
[1759378750041,0.1682765,1034.5,1033.3,0.65129027]
[1759378750240,0.1682765,1034.5,1033.4,0.65129027]
[1759378765156,0.1682765,1034.5,1033.5,0.65129027]
[1759378765656,0.1682765,1034.5,1033.3,0.65129027]
[1759378765853,1.03415852,1034.5,1033.2,0.65129027]
[1759378766955,0.86588202,1034.4,1033.3,0.65129027]
[1759378767854,0.86588202,1034.4,1033.1,0.65129027]
[1759378768958,1.03415852,1034.5,1033.0,3.74427802]
[1759378769858,0.86588202,1034.4,1033.0,3.74427802]
[1759378770057,0.86588202,1033.9,1033.0,3.09298775]
[1759378771356,0.86588202,1034.0,1033.0,3.09298775]
[1759378772460,0.86588202,1034.1,1033.0,3.09298775]
[1759378775167,0.86588202,1034.2,1033.0,3.09298775]
[1759378777663,2.16470506,1034.2,1033.0,3.09298775]
[1759378777868,0.86588202,1034.0,1033.0,3.09298775]
[1759378778169,0.86588202,1033.9,1033.0,3.09298775]
[1759378778465,0.86588202,1034.0,1033.0,3.09298775]
[1759378780167,0.86588202,1034.1,1033.0,3.09298775]
[1759378784468,0.86588202,1034.1,1032.4,0.65129027]
[1759378784672,0.86588202,1034.1,1032.5,0.16839294]
[1759378784868,0.1682765,1034.5,1032.5,0.16839294]
[1759378784869,0.86588202,1034.0,1032.5,0.16839294]
[1759378786373,0.86588202,1034.1,1032.5,0.16839294]
[1759378786574,0.86588202,1034.0,1032.5,0.16839294]
[1759378787471,0.86588202,1034.1,1032.5,0.16839294]
[1759378788676,0.86588202,1034.0,1032.5,0.16839294]
[1759378788975,0.86588202,1034.1,1032.5,0.16839294]
[1759378790872,0.1682765,1034.5,1032.3,26.08940051]
[1759378790873,0.86588202,1034.0,1032.3,26.08940051]
[1759378791076,0.86588202,1034.0,1032.3,26.25783338]
[1759378792180,0.86588202,1034.0,1032.3,0.16843287]
[1759378792380,0.1682765,1034.5,1032.3,0.16843287]
[1759378792381,0.86588202,1034.3,1032.3,0.16843287]
[1759378794576,0.86588202,1034.4,1032.3,0.16843287]
[1759378796377,0.86588202,1034.1,1032.3,0.16843287]
[1759378801985,0.86588202,1034.1,1032.0,0.65129027]
[1759378802185,0.86588202,1034.0,1031.9,0.65129027]
[1759378802488,0.16844592,1033.7,1032.3,0.16844592]
[1759378802687,0.16844592,1033.7,1032.3,3.87385128]
[1759378820495,1.03432794,1033.7,1032.3,3.87385128]
[1759378821490,0.86588202,1033.6,1032.3,3.87385128]
[1759378822495,0.86588202,1033.6,1032.3,3.70540536]
[1759378824496,0.86588202,1033.5,1032.3,3.70540536]
[1759378831497,0.86588202,1033.4,1032.3,3.70540536]
[1759378831701,0.86588202,1033.5,1032.3,3.70540536]
[1759378832096,0.86588202,1033.6,1032.3,3.70540536]
[1759378832300,0.86588202,1033.5,1032.3,3.70540536]
[1759378833097,0.86588202,1033.6,1032.3,3.70540536]
[1759378833396,0.86588202,1033.5,1032.3,3.70540536]
[1759378835702,0.86588202,1033.4,1032.3,3.70540536]
[1759378836802,0.86588202,1033.3,1032.3,3.70540536]
[1759378839799,0.86588202,1033.4,1032.3,3.70540536]
[1759378846414,0.86588202,1033.5,1032.1,0.16846834]
[1759378851021,0.86588202,1033.4,1032.1,0.16846834]
[1759378851521,0.86588202,1033.5,1032.1,0.16846834]
[1759378851722,0.86588202,1033.6,1032.1,0.16846834]
[1759378852517,1.03432794,1033.7,1032.1,0.16846834]
[1759378853620,0.86588202,1033.5,1032.1,0.16846834]
[1759378857926,0.86588202,1033.3,1032.1,0.16846834]
[1759378863035,0.86588202,1033.2,1032.1,0.16846834]
[1759378863532,0.86588202,1033.5,1032.1,0.16846834]
[1759378867233,0.86588202,1033.4,1032.1,0.16846834]
[1759378869634,0.86588202,1033.4,1031.8,0.65129027]
[1759378869939,0.86588202,1033.2,1031.7,0.81981694]
[1759378870333,0.86588202,1033.1,1031.7,0.81981694]
[1759378871335,0.86588202,1032.8,1031.6,0.65129027]
[1759378871535,0.86588202,1032.9,1031.6,0.81985205]
[1759378872040,0.86588202,1032.8,1031.6,0.81985205]
[1759378872234,0.86588202,1032.9,1031.6,0.81985205]
[1759378872837,0.86588202,1033.0,1031.6,0.81985205]
[1759378873140,0.86588202,1032.9,1031.6,0.81985205]
[1759378873338,0.86588202,1033.0,1031.6,0.81985205]
[1759378873537,0.86588202,1032.9,1031.6,0.81985205]
[1759378874341,0.86588202,1032.9,1031.6,0.16856178]
[1759378874541,0.86588202,1032.9,1031.6,0.81985205]
[1759378874838,0.86588202,1033.0,1031.6,0.16856178]
[1759378883150,0.86588202,1033.0,1031.6,0.81985205]
[1759378883551,0.86588202,1033.0,1031.8,0.65129027]
[1759378883949,0.86588202,1033.1,1031.8,0.65129027]
[1759378889856,0.86588202,1033.2,1031.8,0.65129027]
[1759378893559,0.86588202,1033.4,1031.8,0.65129027]
[1759378894556,0.86588202,1033.3,1032.0,0.65129027]
[1759378894958,0.86588202,1033.5,1032.1,0.65129027]
[1759378895262,1.46726896,1033.7,1032.1,0.65129027]
[1759378895263,0.86588202,1033.4,1032.1,0.65129027]
[1759378896660,0.86588202,1033.5,1032.1,0.65129027]
[1759378898562,0.86588202,1033.6,1032.2,0.65129027]
[1759378898761,0.86588202,1033.6,1032.3,0.65129027]
[1759378899667,1.03432794,1033.7,1032.3,0.65129027]
[1759378900162,1.03432794,1033.7,1032.4,0.65129027]
[1759378901167,1.03432794,1033.7,1031.6,0.16856178]
[1759378901168,0.16844592,1033.7,1032.3,0.65129027]
[1759378907365,0.16844592,1033.7,1032.2,0.65129027]
[1759378911377,0.16844592,1033.7,1032.1,0.65129027]
[1759378919882,0.16844592,1033.7,1032.0,0.65129027]
[1759378920185,0.16844592,1033.7,1032.1,0.65129027]
[1759378924884,0.16844592,1033.7,1032.0,0.65129027]
[1759378932295,0.16844592,1033.7,1032.1,0.65129027]
[1759378938199,0.16844592,1033.7,1032.2,0.65129027]
[1759378938498,0.16844592,1033.7,1032.2,3.84802123]
[1759378939096,0.16844592,1033.7,1032.2,3.19673096]
[1759378940497,0.16844592,1033.7,1032.1,0.65129027]
[1759378941195,0.16844592,1033.7,1032.2,0.65129027]
[1759378941397,0.16844592,1033.7,1032.2,3.15414416]
[1759378942201,0.16844592,1033.7,1032.2,3.80543443]
[1759378942601,0.16844592,1033.7,1032.2,3.15414416]
[1759378943304,0.16844592,1033.7,1032.2,3.80543443]
[1759378946006,0.16844592,1033.7,1032.3,0.65129027]
[1759378946204,0.16844592,1033.7,1032.2,3.80543443]
[1759378946704,1.03432794,1033.7,1032.2,3.80543443]
[1759378947509,1.03432794,1033.7,1032.3,0.65129027]
[1759378951207,0.86588202,1033.6,1032.3,0.65129027]
[1759378952410,0.86588202,1033.6,1032.4,0.65129027]
[1759378954810,1.03432794,1033.7,1032.4,0.65129027]
[1759378955013,0.86588202,1033.6,1032.3,0.65129027]
[1759378956411,1.03432794,1033.7,1032.3,0.65129027]
[1759378964618,0.86588202,1033.6,1032.4,0.65129027]
[1759378965919,0.86588202,1033.5,1032.4,0.65129027]
[1759378968823,0.86588202,1033.6,1032.4,0.65129027]
[1759378970625,0.86588202,1033.6,1032.3,0.65129027]
[1759378970824,0.86588202,1033.4,1032.2,3.15414416]
[1759378971121,0.86588202,1033.3,1032.2,3.80610566]
[1759378974131,0.86588202,1033.3,1032.2,0.6519615]
[1759378974328,0.86588202,1033.3,1031.8,1.30304606]
[1759378974329,0.86588202,1033.3,1032.1,0.6519615]
[1759378984234,0.86588202,1033.4,1032.1,0.6519615]
[1759378985739,0.86588202,1033.5,1031.8,0.6519615]
[1759378986040,0.86588202,1033.5,1031.7,0.6519615]
[1759378986241,0.86588202,1033.3,1031.8,0.6519615]
[1759378986440,0.86588202,1033.2,1031.8,0.6519615]
[1759378987737,0.86588202,1033.1,1031.7,3.05128292]
[1759378988241,0.86588202,1033.2,1031.7,3.05128292]
[1759378990044,0.86588202,1033.1,1031.7,3.05128292]
[1759378993543,0.86588202,1033.0,1031.7,3.05128292]
[1759378999352,0.86588202,1033.1,1031.7,3.05128292]
[1759379002553,0.16856749,1032.8,1031.7,3.05128292]
[1759379018466,0.16856749,1032.8,1031.6,0.16856178]
[1759379022366,0.16856749,1032.8,1031.0,0.6519615]
[1759379022569,0.16856749,1032.8,1031.4,3.36033932]
[1759379023770,0.16856749,1032.8,1031.4,3.19173916]
[1759379025670,0.86588202,1033.1,1031.4,3.19173916]
[1759379026069,0.86588202,1032.9,1031.4,3.19173916]
[1759379028474,0.86588202,1032.8,1031.4,3.19173916]
[1759379028774,0.86588202,1032.9,1031.4,3.19173916]
[1759379030275,0.86588202,1032.8,1031.4,3.19173916]
[1759379034273,0.86588202,1032.7,1031.4,3.19173916]
[1759379034876,0.86588202,1032.8,1031.4,3.19173916]
[1759379035473,0.86588202,1032.7,1031.4,3.19173916]
[1759379036874,0.86588202,1032.8,1031.4,3.19173916]
[1759379041480,0.86588202,1032.7,1031.4,3.19173916]
[1759379042381,0.86588202,1032.7,1031.4,3.84370066]
[1759379046182,0.86588202,1032.6,1031.5,0.6519615]
[1759379047484,0.86588202,1032.9,1031.4,3.19173916]
[1759379057297,0.86588202,1032.7,1031.4,3.84370066]
[1759379058397,0.86588202,1032.6,1031.4,3.84370066]
[1759379058596,0.86588202,1032.6,1031.5,0.6519615]
[1759379058798,0.86588202,1032.5,1031.5,0.6519615]
[1759379061601,0.86588202,1032.6,1031.5,0.6519615]
[1759379062601,0.86588202,1032.5,1031.4,3.84370066]
[1759379076818,0.86588202,1032.8,1031.4,3.19173916]
[1759379080219,0.86588202,1032.7,1031.4,3.19173916]
[1759379080722,0.86588202,1032.8,1031.4,3.19173916]
[1759379081321,0.86588202,1032.7,1031.4,3.19173916]
[1759379081618,0.86588202,1032.5,1031.4,3.19173916]
[1759379082220,0.86588202,1032.4,1031.4,3.84370066]
[1759379086821,0.86588202,1032.4,1031.4,3.19173916]
[1759379088524,0.86588202,1032.4,1031.4,3.84370066]
[1759379090029,0.86588202,1032.3,1031.4,3.84370066]
[1759379090624,0.86588202,1032.3,1031.4,3.19173916]
[1759379092030,0.86588202,1032.3,1031.4,3.84370066]
[1759379092927,0.86588202,1032.3,1031.4,3.19173916]
[1759379093830,0.86588202,1032.3,1031.4,3.84370066]
[1759379097636,0.86588202,1032.3,1031.4,3.19173916]
[1759379103942,0.86588202,1032.4,1031.4,3.19173916]
[1759379109746,0.86588202,1032.3,1031.4,3.19173916]
[1759379110345,0.86588202,1032.6,1031.4,3.19173916]
[1759379117870,0.86588202,1032.5,1031.4,3.19173916]
[1759379118665,0.86588202,1032.4,1031.4,3.19173916]
[1759379119467,0.86588202,1032.3,1031.4,3.19173916]
[1759379125371,0.86588202,1032.3,1031.0,0.6519615]
[1759379125575,0.86588202,1032.3,1030.8,0.86869737]
[1759379125576,0.86588202,1032.4,1030.8,0.6519615]
[1759379128671,0.86588202,1032.2,1030.8,0.6519615]
[1759379128975,0.86588202,1032.1,1030.9,0.6519615]
[1759379129173,0.86588202,1032.1,1030.9,3.7056288]
[1759379131074,0.86588202,1032.2,1030.9,3.0536673]
[1759379137880,0.86588202,1032.3,1030.9,3.0536673]
[1759379138388,0.86588202,1032.2,1030.9,3.0536673]
[1759379139087,0.86588202,1032.3,1030.9,3.0536673]
[1759379144484,0.86588202,1032.2,1030.9,3.0536673]
[1759379145186,0.86588202,1032.3,1030.9,3.0536673]
[1759379146191,0.86588202,1032.2,1030.9,3.0536673]
[1759379146990,0.86588202,1032.3,1030.9,3.0536673]
[1759379154902,0.86588202,1032.2,1030.9,3.0536673]
[1759379156801,0.86588202,1032.1,1030.9,3.0536673]
[1759379158902,0.86588202,1032.2,1030.9,3.0536673]
[1759379165210,0.86588202,1032.1,1030.9,3.0536673]
[1759379170716,0.86588202,1032.0,1030.9,3.0536673]
[1759379174919,0.86588202,1032.1,1030.9,3.0536673]
[1759379175220,0.86588202,1031.9,1030.9,3.0536673]
[1759379181128,0.86588202,1031.7,1030.9,3.0536673]
[1759379181328,0.86588202,1031.7,1030.4,0.65096983]
[1759379181628,0.86588202,1031.9,1030.4,0.65096983]
[1759379181828,0.86588202,1031.7,1030.6,0.65096983]
[1759379182528,0.86588202,1031.8,1030.6,0.65096983]
[1759379184128,0.86588202,1031.8,1030.7,0.65096983]
[1759379185629,0.86588202,1031.9,1030.5,0.65096983]
[1759379192237,0.86588202,1032.0,1030.5,0.65096983]
[1759379193936,0.86588202,1032.0,1030.6,0.65096983]
[1759379194238,0.86588202,1032.0,1030.5,0.65096983]
[1759379194440,0.86588202,1032.0,1030.6,0.65096983]
[1759379196036,0.86588202,1032.2,1030.7,0.65096983]
[1759379200945,0.86588202,1032.1,1030.7,0.65096983]
[1759379204246,0.86588202,1032.1,1030.9,0.65096983]
[1759379204443,0.86588202,1032.2,1030.9,4.091893]
[1759379205140,0.86588202,1032.5,1030.9,3.44092317]
[1759379205345,0.86588202,1032.4,1030.9,3.44092317]
[1759379207950,0.86588202,1032.4,1030.6,0.65096983]
[1759379208250,0.86588202,1031.8,1030.3,0.65096983]
[1759379212052,0.86588202,1032.0,1030.4,0.65096983]
[1759379214154,0.86588202,1031.9,1030.4,0.65096983]
[1759379214353,0.86588202,1032.0,1030.4,0.65096983]
[1759379215456,0.86588202,1031.9,1030.4,0.65096983]
[1759379217456,0.86588202,1032.0,1030.4,0.65096983]
[1759379217655,0.86588202,1032.0,1030.5,0.65096983]
[1759379219754,0.86588202,1032.1,1030.5,0.65096983]
[1759379224159,0.86588202,1031.9,1030.5,0.65096983]
[1759379224557,0.16872686,1031.8,1030.6,0.16872686]
[1759379224761,0.16872686,1031.8,1030.6,3.6634256]
[1759379231670,1.03460888,1031.8,1030.6,3.6634256]
[1759379232076,1.03460888,1031.8,1030.6,3.49469874]
[1759379232273,0.86588202,1031.7,1030.6,3.49469874]
[1759379238984,0.16872686,1031.8,1030.6,3.49469874]
[1759379242884,0.86588202,1031.7,1030.6,3.49469874]
[1759379245185,1.03460888,1031.8,1030.6,3.49469874]
[1759379245384,1.03460888,1031.8,1030.6,4.14566857]
[1759379247882,1.03460888,1031.8,1030.6,3.49469874]
[1759379249388,1.03460888,1031.8,1030.6,4.14566857]
[1759379251890,0.16872686,1031.8,1030.6,4.14566857]
[1759379252090,0.16872686,1031.8,1030.7,0.65096983]
[1759379256494,0.86588202,1032.2,1030.7,0.65096983]
[1759379256690,0.86588202,1032.4,1030.9,0.65096983]
[1759379256988,0.16868842,1032.0,1030.9,0.65096983]
[1759379261194,0.16868842,1032.0,1030.8,0.65096983]
[1759379265296,0.86588202,1032.5,1030.8,0.65096983]
[1759379265500,0.16866226,1032.2,1030.8,0.65096983]
[1759379266901,0.16866226,1032.2,1030.9,0.65096983]
[1759379268702,0.16866226,1032.2,1031.0,0.65096983]
[1759379271204,0.16866226,1032.2,1030.9,0.65096983]
[1759379271702,0.16866226,1032.2,1031.0,0.65096983]
[1759379272202,0.16866226,1032.2,1030.9,0.65096983]
[1759379278206,0.16866226,1032.2,1030.8,0.65096983]
[1759379279606,0.16866226,1032.2,1030.6,4.36339611]
[1759379284408,0.16866226,1032.2,1030.6,3.49469874]
[1759379290616,1.03454428,1032.2,1030.6,3.49469874]
[1759379294322,0.86588202,1032.1,1030.6,3.49469874]
[1759379295422,1.03454428,1032.2,1030.6,3.49469874]
[1759379295918,0.86588202,1032.1,1030.6,3.49469874]
[1759379296621,1.03454428,1032.2,1030.6,3.49469874]
[1759379298225,0.86588202,1032.1,1030.6,3.49469874]
[1759379300524,1.03454428,1032.2,1030.6,3.49469874]
[1759379300722,0.86588202,1032.1,1030.6,3.49469874]
[1759379303125,0.86588202,1032.0,1030.6,3.49469874]
[1759379303328,0.86588202,1032.1,1030.6,3.49469874]
[1759379305628,0.86588202,1032.0,1030.6,3.49469874]
[1759379306029,0.86588202,1032.1,1030.6,3.49469874]
[1759379306329,0.86588202,1032.0,1030.6,3.49469874]
[1759379307528,0.86588202,1031.9,1030.6,3.49469874]
[1759379308025,0.86588202,1032.0,1030.6,3.49469874]
[1759379309726,0.86588202,1032.1,1030.6,3.49469874]
[1759379313838,0.86588202,1032.0,1030.6,3.49469874]
[1759379316437,0.86588202,1031.8,1030.4,0.16875141]
[1759379321936,0.86588202,1031.7,1030.4,0.16875141]
[1759379324841,0.86588202,1031.8,1030.4,0.16875141]
[1759379334152,0.86588202,1031.7,1030.4,0.16875141]
[1759379336549,0.86588202,1031.7,1029.9,0.86869737]
[1759379336848,0.86588202,1031.4,1030.0,0.16881854]
[1759379339754,0.86588202,1031.3,1030.0,0.16881854]
[1759379340049,0.86588202,1031.4,1030.0,0.16881854]
[1759379340454,0.86588202,1031.3,1030.0,0.16881854]
[1759379341349,0.86588202,1031.4,1030.0,0.16881854]
[1759379341649,0.86588202,1031.3,1030.0,0.16881854]
[1759379346155,0.86588202,1031.3,1029.2,0.86869737]
[1759379346354,0.86588202,1031.5,1029.1,0.86869737]
[1759379346655,0.86588202,1031.6,1029.8,0.16888162]
[1759379346854,0.86588202,1031.6,1029.6,3.40675924]
[1759379347058,0.86588202,1031.6,1029.8,0.16886605]
[1759379351258,0.86588202,1031.4,1029.8,0.16886605]
[1759379351456,0.86588202,1031.3,1029.8,0.16886605]
[1759379351660,0.86588202,1031.5,1029.8,0.16886605]
[1759379353062,0.86588202,1031.7,1029.8,0.16886605]
[1759379358465,0.86588202,1031.5,1029.8,0.16886605]
[1759379361467,0.86588202,1031.3,1029.8,0.16886605]
[1759379361867,0.86588202,1031.5,1029.8,0.16886605]
[1759379368968,0.86588202,1031.4,1029.8,0.16886605]
[1759379371166,0.86588202,1031.3,1029.8,0.16886605]
[1759379373668,0.86588202,1031.7,1029.6,3.40675924]
[1759379373869,0.86588202,1031.4,1029.6,3.57563922]
[1759379374073,0.86588202,1031.5,1029.6,3.57563922]
[1759379374573,0.86588202,1031.4,1029.6,3.57563922]
[1759379375275,0.86588202,1031.2,1029.6,3.57563922]
[1759379375473,0.86588202,1031.2,1029.6,3.40675924]
[1759379375670,0.86588202,1031.2,1029.4,0.16889064]
[1759379375872,0.86588202,1031.1,1029.4,0.16889064]
[1759379376075,0.86588202,1030.9,1029.4,0.16889064]
[1759379376375,0.86588202,1030.6,1028.9,28.63242859]
[1759379376572,0.86588202,1030.7,1029.3,0.16894475]
[1759379377175,0.86588202,1030.7,1028.7,0.86869737]
[1759379377372,0.86588202,1030.7,1027.7,2.17174344]
[1759379377373,0.86588202,1030.7,1028.4,0.86869737]
[1759379377572,0.86588202,1030.7,1029.1,0.16897305]
[1759379377772,0.86588202,1030.7,1028.4,0.86869737]
[1759379377977,0.86588202,1030.8,1028.4,0.86869737]
[1759379378178,0.86588202,1030.8,1029.1,0.16898987]
[1759379378378,0.86588202,1030.8,1028.4,0.86869737]
[1759379378679,0.86588202,1030.8,1029.1,0.16898577]
[1759379378879,0.86588202,1030.8,1028.4,0.86869737]
[1759379379180,0.86588202,1030.8,1029.1,0.16898577]
[1759379379475,0.86588202,1030.8,1028.4,0.86869737]
[1759379379778,0.86588202,1030.8,1029.1,0.16898577]
[1759379379979,0.86588202,1030.8,1028.4,0.86869737]
[1759379380181,0.86588202,1030.8,1029.1,0.16898577]
[1759379380477,0.86588202,1030.8,1028.3,0.86869737]
[1759379380778,0.86588202,1030.8,1029.1,0.16898987]
[1759379381081,0.86588202,1030.8,1028.3,0.86869737]
[1759379381376,0.86588202,1030.8,1029.1,0.16898987]
[1759379381581,0.86588202,1030.8,1028.3,0.86869737]
[1759379381781,0.86588202,1030.8,1029.1,0.16898987]
[1759379382082,0.86588202,1030.8,1028.3,0.86869737]
[1759379382384,0.86588202,1030.8,1029.1,0.16898987]
[1759379382678,0.86588202,1030.8,1028.3,0.86869737]
[1759379382881,0.86588202,1030.8,1029.1,0.16898987]
[1759379383082,0.86588202,1030.6,1029.1,0.16898987]
[1759379383381,0.86588202,1030.6,1029.1,0.16898331]
[1759379383776,0.86588202,1030.7,1029.1,0.16898331]
[1759379384282,0.86588202,1030.8,1029.1,0.16898331]
[1759379386478,1.29882304,1031.0,1029.1,0.16898331]
[1759379387384,2.16470506,1031.9,1029.1,0.16898331]
[1759379387681,0.85832962,1031.0,1029.1,0.16898331]
[1759379388984,1.28749444,1031.3,1029.1,0.16898331]
[1759379390186,2.33336732,1032.2,1029.1,0.16898331]
[1759379404995,0.86069699,1031.3,1029.1,0.16898331]
[1759379405699,0.86069699,1031.1,1029.1,0.16898331]
[1759379406400,0.86069699,1031.0,1029.1,0.16898331]
[1759379412001,0.86069699,1031.0,1029.1,1.03591851]
[1759379412406,0.86069699,1030.9,1029.2,0.8669352]
[1759379412606,0.86069699,1031.0,1029.2,0.8669352]
[1759379412902,0.86069699,1031.0,1029.1,1.03591851]
[1759379413300,0.86069699,1031.2,1029.1,1.03591851]
[1759379413802,0.86069699,1031.2,1029.1,0.16898331]
[1759379416212,0.86069699,1031.3,1029.1,0.16898331]
[1759379420008,1.29104549,1031.6,1029.1,0.16898331]
[1759379420009,0.86069699,1031.2,1029.1,1.03591851]
[1759379420209,0.86069699,1031.0,1029.2,0.8669352]
[1759379420410,0.86069699,1031.1,1029.2,0.8669352]
[1759379420613,0.86069699,1031.0,1029.3,0.8669352]
[1759379422814,0.86069699,1031.0,1029.2,0.8669352]
[1759379424118,0.86069699,1031.0,1029.3,0.8669352]
[1759379424316,0.86069699,1031.0,1029.2,0.8669352]
[1759379425212,0.86069699,1031.0,1029.3,0.8669352]
[1759379427014,0.86069699,1031.0,1029.2,0.8669352]
[1759379427218,0.86069699,1031.0,1029.3,0.8669352]
[1759379434719,0.86069699,1031.1,1029.2,0.8669352]
[1759379434918,0.86069699,1031.2,1029.1,1.03591851]
[1759379435217,0.86069699,1031.3,1029.1,1.03591851]
[1759379436324,0.86069699,1031.2,1029.1,1.03591851]
[1759379440122,0.86069699,1031.1,1029.2,0.8669352]
[1759379440422,1.29104549,1031.5,1029.1,0.16898331]
[1759379440423,0.86069699,1030.9,1029.3,0.8669352]
[1759379440627,0.86069699,1031.0,1029.3,0.8669352]
[1759379440821,0.86069699,1030.9,1029.3,0.8669352]
[1759379441424,0.86069699,1030.8,1029.4,0.8669352]
[1759379442421,0.86069699,1030.7,1029.3,0.8669352]
[1759379442826,0.86069699,1030.6,1029.3,0.8669352]
[1759379444327,0.86069699,1030.5,1029.4,0.8669352]
[1759379444834,1.29104549,1030.7,1029.3,0.8669352]
[1759379444835,0.86069699,1030.6,1029.3,0.8669352]
[1759379445330,0.86069699,1030.5,1029.4,0.8669352]
[1759379445530,0.86069699,1030.7,1029.2,0.8669352]
[1759379445732,0.86069699,1030.6,1029.2,0.8669352]
[1759379446429,0.86069699,1030.6,1029.3,0.8669352]
[1759379446634,0.86069699,1030.5,1029.2,0.8669352]
[1759379447735,0.86069699,1030.6,1029.2,0.8669352]
[1759379447934,0.86069699,1030.5,1029.2,0.8669352]
[1759379451539,0.86069699,1030.5,1029.1,1.03591851]
[1759379454744,0.86069699,1030.5,1029.1,0.16898331]
[1759379456242,0.86069699,1030.6,1029.1,0.16898331]
[1759379459548,0.86069699,1030.5,1029.1,0.16898331]
[1759379461248,0.86069699,1030.6,1029.1,0.16898331]
[1759379464451,0.86069699,1030.5,1029.1,0.16898331]
[1759379465752,0.16898413,1030.2,1029.1,0.16898331]
[1759379468354,0.86069699,1030.6,1029.1,0.16898331]
[1759379468549,0.16895952,1030.4,1029.1,0.16898331]
[1759379469052,0.86069699,1031.2,1029.1,0.16898331]
[1759379469252,0.16893327,1030.7,1029.1,0.16898331]
[1759379469553,0.16893327,1030.7,1029.2,0.8669352]
[1759379469850,0.16893327,1030.7,1029.3,0.8669352]
[1759379470051,0.16893327,1030.7,1029.2,0.8669352]
[1759379471552,0.16893327,1030.7,1029.3,0.8669352]
[1759379471957,0.16893327,1030.7,1029.2,0.8669352]
[1759379473055,0.86069699,1031.1,1029.2,0.8669352]
[1759379473358,0.16889555,1030.9,1029.3,0.8669352]
[1759379473756,0.16889555,1030.9,1029.5,0.8669352]
[1759379474360,0.16889555,1030.9,1029.4,0.8669352]
[1759379477359,0.16889555,1030.9,1029.3,0.8669352]
[1759379479857,0.16889555,1030.9,1029.4,0.8669352]
[1759379482060,0.16889555,1030.9,1029.1,1.03591851]
[1759379482258,0.16889555,1030.9,1029.2,0.8669352]
[1759379482458,0.16889555,1030.9,1029.1,1.03591851]
[1759379482762,0.16889555,1030.9,1029.2,0.8669352]
[1759379485364,0.16889555,1030.9,1029.1,1.03591851]
[1759379485567,0.16889555,1030.9,1029.2,0.8669352]
[1759379485865,0.16889555,1030.9,1029.1,1.03591851]
[1759379487365,0.86069699,1031.5,1029.1,1.03591851]
[1759379487569,0.86069699,1031.3,1029.5,0.8669352]